bitfinex/quotes_BTCUSD_20250523
["timestamp","ask_amount","ask_price","bid_price","bid_amount"]
[1748022170335,0.04659457,109300.0,109290.0,0.98489731]
[1748022172187,0.02829699,109300.0,109290.0,0.98489731]
[1748022172599,0.02829691,109300.0,109290.0,0.98489731]
[1748022172801,0.0374457,109300.0,109290.0,0.98489731]
[1748022173380,0.03744562,109300.0,109290.0,0.98489731]
[1748022173551,0.01914837,109300.0,109290.0,0.98489731]
[1748022173770,0.04659416,109300.0,109290.0,0.98489731]
[1748022174118,0.01914837,109300.0,109290.0,0.98489731]
[1748022174532,0.01,109300.0,109290.0,0.98489731]
[1748022175954,0.01914854,109300.0,109290.0,0.98489731]
[1748022176151,0.01,109300.0,109290.0,0.98489731]
[1748022176577,0.02829717,109300.0,109290.0,0.98489731]
[1748022176731,0.01914854,109300.0,109290.0,0.98489731]
[1748022176934,0.01,109300.0,109290.0,0.98489731]
[1748022177136,0.01914854,109300.0,109290.0,0.98489731]
[1748022177355,0.01,109300.0,109290.0,0.98489731]
[1748022177636,0.01914837,109300.0,109290.0,0.98489731]
[1748022177890,0.02829691,109300.0,109290.0,0.71061731]
[1748022178096,0.02829691,109300.0,109290.0,1.34505731]
[1748022179413,0.0465944,109300.0,109290.0,1.34505731]
[1748022180217,0.0465944,109300.0,109290.0,1.07085731]
[1748022180438,0.0465944,109300.0,109290.0,1.34505731]
[1748022181029,0.05574336,109300.0,109290.0,1.34505731]
[1748022181443,0.05574336,109300.0,109290.0,1.34501731]
[1748022181980,0.04659432,109300.0,109290.0,1.34501731]
[1748022182199,0.0465944,109300.0,109290.0,1.34501731]
[1748022182405,0.01,109300.0,109290.0,1.34501731]
[1748022182610,0.27520093,109330.0,109320.0,0.52294914]
[1748022182921,0.01829247,109330.0,109320.0,1.19393836]
[1748022182937,0.21037149,109330.0,109320.0,1.18479124]
[1748022183160,0.21037149,109330.0,109320.0,1.19341086]
[1748022183380,0.21037149,109330.0,109320.0,1.20255806]
[1748022183590,0.2103714,109330.0,109320.0,1.21170501]
[1748022183810,0.2103714,109330.0,109320.0,1.20255806]
[1748022184012,0.2103714,109330.0,109320.0,1.20555806]
[1748022184609,0.20122529,109330.0,109320.0,1.18726358]
[1748022184828,0.19207893,109330.0,109320.0,0.98601962]
[1748022185049,0.19207893,109330.0,109320.0,1.17096876]
[1748022185274,0.19207893,109330.0,109320.0,1.16796876]
[1748022185500,0.22867893,109330.0,109320.0,0.98501962]
[1748022185709,0.22867893,109330.0,109320.0,0.98701962]
[1748022186381,0.22867893,109330.0,109320.0,1.17911621]
[1748022186617,0.22867893,109330.0,109320.0,0.99616707]
[1748022187068,0.22867893,109330.0,109320.0,0.98701962]
[1748022187303,0.39214456,109330.0,109320.0,0.01261962]
[1748022187531,0.39214456,109330.0,109320.0,0.28677962]
[1748022188015,0.39214456,109330.0,109320.0,0.29525276]
[1748022188197,0.39214456,109330.0,109320.0,0.29325276]
[1748022188537,0.39214456,109330.0,109320.0,0.29125276]
[1748022188765,0.39214456,109330.0,109320.0,0.29225276]
[1748022188987,0.22867893,109330.0,109320.0,0.01809276]
[1748022189207,0.22867893,109330.0,109320.0,0.65373938]
[1748022189438,0.23167893,109330.0,109320.0,0.65145276]
[1748022189655,0.23367893,109330.0,109320.0,0.65145276]
[1748022190753,0.23367893,109330.0,109320.0,0.64297962]
[1748022190977,0.01414603,109330.0,109320.0,1.19337003]
[1748022191207,0.02329214,109330.0,109320.0,1.19337003]
[1748022191697,0.003,109330.0,109320.0,1.19337003]
[1748022191927,0.003,109330.0,109320.0,1.28291559]
[1748022192150,0.02743575,109340.0,109330.0,0.21037124]
[1748022192369,0.02743575,109340.0,109330.0,0.2999168]
[1748022192593,0.01829031,109340.0,109330.0,0.2999168]
[1748022192838,0.0282893,109350.0,109340.0,0.55035226]
[1748022193084,0.21118824,109350.0,109340.0,1.18403226]
[1748022193301,0.22033352,109350.0,109340.0,1.17488715]
[1748022193520,0.22033352,109350.0,109340.0,1.19317812]
[1748022193728,0.22033352,109350.0,109340.0,1.1926523]
[1748022193930,0.22033352,109350.0,109340.0,1.20179766]
[1748022194347,0.22033352,109350.0,109340.0,1.23804542]
[1748022194775,0.21118874,109350.0,109340.0,1.22890006]
[1748022194980,0.21118874,109350.0,109340.0,1.2380455]
[1748022195179,0.22769894,109350.0,109340.0,0.04486738]
[1748022195385,0.22769894,109350.0,109340.0,1.01854738]
[1748022195840,0.22869894,109350.0,109340.0,0.58512186]
[1748022196051,0.22869894,109350.0,109340.0,0.35952]
[1748022196222,0.22869894,109350.0,109340.0,0.39681421]
[1748022196971,0.22869894,109350.0,109340.0,0.67093421]
[1748022197871,0.22869894,109350.0,109340.0,1.01093421]
[1748022199010,0.3594071,109350.0,109320.0,0.01083785]
[1748022199251,0.3594071,109350.0,109320.0,0.01088845]
[1748022199252,0.23722505,109330.0,109320.0,0.01088845]
[1748022199456,0.23722505,109330.0,109320.0,0.98448845]
[1748022199667,0.20122505,109330.0,109320.0,1.18573208]
[1748022199878,0.20122505,109330.0,109320.0,1.16574711]
[1748022200294,0.1829324,109330.0,109320.0,0.9736506]
[1748022200512,0.1829324,109330.0,109320.0,1.16574702]
[1748022200932,0.1829324,109330.0,109320.0,1.17489439]
[1748022201445,0.2002324,109330.0,109320.0,0.3420506]
[1748022201677,0.2188324,109330.0,109320.0,0.3420506]
[1748022201888,0.2188324,109330.0,109320.0,0.3440506]
[1748022202092,0.2188324,109330.0,109320.0,0.3595306]
[1748022202262,0.2188324,109330.0,109320.0,0.6356506]
[1748022202466,0.2188324,109330.0,109320.0,0.9776506]
[1748022202615,0.19579851,109330.0,109320.0,0.9776506]
[1748022202816,0.19579851,109330.0,109320.0,0.9756506]
[1748022203057,0.19579851,109330.0,109320.0,0.9746506]
[1748022204103,0.19579851,109330.0,109320.0,0.3410506]
[1748022204286,0.19579851,109330.0,109320.0,0.9746906]
[1748022205273,0.19579851,109330.0,109320.0,0.7005706]
[1748022205443,0.19579851,109330.0,109320.0,0.9746906]
[1748022208998,0.19579851,109330.0,109320.0,0.98336887]
[1748022211282,0.19579851,109330.0,109320.0,0.9746906]
[1748022212544,0.37380499,109330.0,109300.0,0.01083785]
[1748022212793,0.23826186,109310.0,109300.0,0.01083785]
[1748022213006,0.34234827,109310.0,109300.0,0.01083785]
[1748022213203,0.34234827,109310.0,109300.0,0.0193241]
[1748022213620,0.34234827,109310.0,109300.0,0.0233241]
[1748022214026,0.34234827,109310.0,109300.0,0.01083785]
[1748022214236,0.24347242,109300.0,109290.0,0.0164279]
[1748022214464,0.33301798,109300.0,109290.0,0.0164279]
[1748022215279,0.18303285,109270.0,109250.0,0.42555785]
[1748022215487,0.19220191,109260.0,109250.0,0.42555785]
[1748022215699,0.19220191,109260.0,109250.0,0.77424]
[1748022215918,0.22730191,109260.0,109250.0,1.05687449]
[1748022216536,0.22745346,109260.0,109250.0,1.05687449]
[1748022216916,0.22745346,109260.0,109250.0,0.42319449]
[1748022217084,0.22745346,109260.0,109250.0,1.05691449]
[1748022217290,0.22745346,109260.0,109250.0,1.06191449]
[1748022217716,0.22745346,109260.0,109250.0,1.05691449]
[1748022217917,0.22745346,109260.0,109250.0,1.05991449]
[1748022218153,0.22745346,109260.0,109250.0,1.06391449]
[1748022218470,0.20150568,109260.0,109250.0,1.05691449]
[1748022218678,0.20150568,109260.0,109250.0,1.24198085]
[1748022218880,0.20150568,109260.0,109250.0,1.06091449]
[1748022219078,0.19235346,109260.0,109250.0,1.40091449]
[1748022219440,0.21035346,109260.0,109250.0,1.40091449]
[1748022219642,0.22785346,109260.0,109250.0,1.40091449]
[1748022220059,0.22785346,109260.0,109250.0,0.76719449]
[1748022220268,0.22785346,109260.0,109250.0,1.40103449]
[1748022222296,0.22785346,109260.0,109250.0,1.12683449]
[1748022222501,0.22785346,109260.0,109250.0,1.40103449]
[1748022222798,0.23700552,109260.0,109250.0,1.4193407]
[1748022222996,0.21065791,109260.0,109250.0,1.59269408]
[1748022223224,0.21980938,109260.0,109250.0,1.61099979]
[1748022223500,0.2198093,109260.0,109250.0,1.60184706]
[1748022224299,0.21065749,109260.0,109250.0,1.61099995]
[1748022224718,0.21065749,109260.0,109250.0,1.60184706]
[1748022225261,0.02760789,109260.0,109250.0,1.61099979]
[1748022225458,0.21065749,109260.0,109250.0,1.61099979]
[1748022225682,0.22896236,109260.0,109250.0,1.61099995]
[1748022225868,0.21981047,109260.0,109250.0,1.61099995]
[1748022226078,0.21981047,109260.0,109250.0,1.64831226]
[1748022226406,0.21981047,109260.0,109250.0,1.65746499]
[1748022227028,0.03760839,109260.0,109250.0,1.65746499]
[1748022227251,0.22981047,109260.0,109250.0,1.65746499]
[1748022227458,0.028456,109260.0,109250.0,1.65746499]
[1748022227663,0.03760839,109260.0,109250.0,1.65746499]
[1748022228597,0.22065799,109260.0,109250.0,1.65746499]
[1748022228799,0.02845558,109260.0,109250.0,1.65746499]
[1748022229009,0.01930344,109260.0,109250.0,1.74701055]
[1748022229190,0.0284555,109260.0,109250.0,1.37473606]
[1748022229396,0.01930344,109260.0,109250.0,1.3833928]
[1748022229619,0.02845542,109260.0,109250.0,1.3833928]
[1748022229820,0.01930336,109260.0,109250.0,1.3833928]
[1748022230022,0.02845542,109260.0,109250.0,1.3833928]
[1748022230595,0.03760747,109260.0,109250.0,1.3833928]
[1748022231023,0.03760747,109260.0,109250.0,0.7501128]
[1748022231201,0.03760747,109260.0,109250.0,1.3833928]
[1748022231403,0.04675978,109260.0,109250.0,1.3833928]
[1748022231645,0.02845533,109260.0,109250.0,1.7233928]
[1748022232274,0.03760755,109260.0,109250.0,1.7233928]
[1748022232699,0.33765124,109260.0,109250.0,0.04596905]
[1748022233116,0.33765124,109260.0,109250.0,0.32024905]
[1748022233326,0.33765124,109260.0,109250.0,0.31159231]
[1748022234167,0.33965124,109260.0,109250.0,0.31159231]
[1748022234880,0.34165124,109260.0,109250.0,0.31159231]
[1748022235094,0.22761951,109250.0,109240.0,0.38112]
[1748022235292,0.31716507,109250.0,109240.0,0.9954]
[1748022235511,0.31716507,109250.0,109240.0,0.6554]
[1748022235999,0.33170592,109250.0,109240.0,0.6554]
[1748022236206,0.33170592,109250.0,109240.0,0.29628]
[1748022237744,0.33170592,109250.0,109240.0,0.022]
[1748022237882,0.33170592,109250.0,109240.0,0.05942192]
[1748022238237,0.33170592,109250.0,109240.0,0.29632]
[1748022238477,0.33170592,109250.0,109240.0,0.022]
[1748022239109,0.33170592,109250.0,109240.0,0.29632]
[1748022239944,0.31716507,109250.0,109240.0,0.33344362]
[1748022240161,0.23677257,109250.0,109240.0,0.33344362]
[1748022240377,0.23677257,109250.0,109240.0,0.67344362]
[1748022241413,0.23677257,109250.0,109240.0,0.68212607]
[1748022241623,0.23677257,109250.0,109240.0,1.04977143]
[1748022246385,0.24677257,109250.0,109240.0,1.04977143]
[1748022247619,0.24677257,109250.0,109240.0,1.04981143]
[1748022248232,0.33631813,109250.0,109240.0,0.41629143]
[1748022248448,0.33631813,109250.0,109240.0,1.04981143]
[1748022249308,0.88347055,109250.0,109240.0,0.03916781]
[1748022250382,0.83151862,109250.0,109240.0,0.03048536]
[1748022250585,0.83551862,109250.0,109240.0,0.03048536]
[1748022251214,0.83551862,109250.0,109240.0,0.022]
[1748022251425,0.83951862,109250.0,109240.0,0.023]
[1748022251825,0.83951862,109250.0,109240.0,0.0058]
[1748022252032,0.92904013,109250.0,109240.0,0.0058]
[1748022252475,0.87650566,109250.0,109240.0,0.0058]
[1748022253100,0.87650566,109250.0,109220.0,0.01049611]
[1748022253101,0.97902926,109230.0,109220.0,0.01049611]
[1748022253316,1.34293482,109230.0,109220.0,0.002]
[1748022253530,0.70997719,109230.0,109220.0,0.002]
[1748022253741,1.43245633,109230.0,109220.0,0.002]
[1748022254216,0.21598701,109210.0,109200.0,0.032]
[1748022254421,0.34063257,109210.0,109200.0,0.032]
[1748022254631,0.34063257,109210.0,109200.0,0.04048997]
[1748022255462,0.34063257,109210.0,109200.0,0.04099756]
[1748022255672,0.34063257,109210.0,109200.0,0.04199756]
[1748022255881,0.34463257,109210.0,109200.0,0.04199756]
[1748022256322,0.34463257,109210.0,109200.0,0.31639756]
[1748022256704,0.34663257,109210.0,109200.0,0.31639756]
[1748022257699,0.33209172,109210.0,109200.0,0.31639756]
[1748022258076,0.33209172,109210.0,109200.0,0.67507756]
[1748022259817,0.22404616,109210.0,109200.0,1.01511756]
[1748022260029,0.19828991,109210.0,109200.0,1.20742516]
[1748022260242,0.20744616,109210.0,109200.0,1.20742508]
[1748022260441,0.006,109210.0,109200.0,1.33388489]
[1748022260647,0.006,109210.0,109200.0,1.34308181]
[1748022260898,0.006,109210.0,109200.0,0.71491428]
[1748022261047,0.002,109210.0,109200.0,1.34707428]
[1748022261242,0.00915524,109220.0,109210.0,0.5506024]
[1748022261463,0.00915423,109230.0,109220.0,0.21058311]
[1748022261663,0.21971816,109230.0,109220.0,1.17458787]
[1748022261864,0.22887315,109230.0,109220.0,1.18374319]
[1748022262089,0.21971892,109230.0,109220.0,1.18374319]
[1748022262319,0.21971892,109230.0,109220.0,1.19242563]
[1748022262527,0.21971892,109230.0,109220.0,1.18327031]
[1748022262843,0.21156443,109230.0,109220.0,1.18327031]
[1748022263224,0.21156443,109230.0,109220.0,1.18427031]
[1748022263980,0.21971883,109230.0,109220.0,1.20258104]
[1748022264185,0.22071883,109230.0,109220.0,1.20258104]
[1748022264529,0.40137541,109230.0,109220.0,0.00968244]
[1748022264738,0.40137541,109230.0,109220.0,0.28412244]
[1748022265765,0.41591626,109230.0,109220.0,0.27544]
[1748022265977,0.41591626,109230.0,109220.0,0.001]
[1748022266198,0.41591626,109230.0,109220.0,0.27544]
[1748022266626,0.40137541,109230.0,109220.0,0.27544]
[1748022271678,0.32745534,109230.0,109220.0,0.63718115]
[1748022271935,0.21900978,109230.0,109220.0,0.63718115]
[1748022272261,0.20240978,109230.0,109220.0,0.98566959]
[1748022272769,0.20240978,109230.0,109220.0,1.35610076]
[1748022272932,0.20240978,109230.0,109220.0,1.37400076]
[1748022273279,0.19325487,109230.0,109220.0,1.36551232]
[1748022273418,0.1932547,109230.0,109220.0,1.56694037]
[1748022273623,0.1932547,109230.0,109220.0,1.91650479]
[1748022273819,0.1932547,109230.0,109220.0,1.73338815]
[1748022274039,0.1932547,109230.0,109220.0,1.91650479]
[1748022274238,0.1932547,109230.0,109220.0,1.91650462]
[1748022274490,0.1932547,109230.0,109220.0,1.9256602]
[1748022275060,0.1932547,109230.0,109220.0,1.93481569]
[1748022275262,0.1932547,109230.0,109220.0,1.08805117]
[1748022275468,0.1932547,109230.0,109220.0,1.34459117]
[1748022276070,0.1932547,109230.0,109220.0,1.53686355]
[1748022276391,0.1932547,109230.0,109220.0,1.53686364]
[1748022276623,0.1932547,109230.0,109220.0,1.55517504]
[1748022276857,0.2032547,109230.0,109220.0,1.56433062]
[1748022277560,0.2032547,109230.0,109220.0,1.55517504]
[1748022278138,0.2032547,109230.0,109220.0,1.56433045]
[1748022278364,0.2032547,109230.0,109220.0,1.57257504]
[1748022278578,0.2032547,109230.0,109220.0,1.55517504]
[1748022279335,0.2032547,109230.0,109220.0,1.54601938]
[1748022279536,0.2032547,109230.0,109220.0,1.55517504]
[1748022279761,0.2032547,109230.0,109220.0,1.57348611]
[1748022279905,0.04761862,109230.0,109220.0,1.57348569]
[1748022280139,0.2307185,109230.0,109220.0,1.58333028]
[1748022280364,0.22156418,109230.0,109220.0,1.27157921]
[1748022280694,0.22156418,109230.0,109220.0,1.55513462]
[1748022281540,0.22156418,109230.0,109220.0,1.54597921]
[1748022281764,0.22156418,109230.0,109220.0,1.56429011]
[1748022281995,0.22156418,109230.0,109220.0,1.5642902]
[1748022282336,0.22156418,109230.0,109220.0,1.55513479]
[1748022282522,0.22156418,109230.0,109220.0,1.20254913]
[1748022282760,0.22156418,109230.0,109220.0,1.56429028]
[1748022282951,0.22156418,109230.0,109220.0,1.57344519]
[1748022283152,0.02930931,109230.0,109220.0,1.57344519]
[1748022283372,0.04761904,109230.0,109220.0,1.57344519]
[1748022283934,0.23071892,109230.0,109220.0,1.55513454]
[1748022284836,0.21240961,109230.0,109220.0,0.91285905]
[1748022285050,0.21240961,109230.0,109220.0,1.54569905]
[1748022286531,0.02015457,109230.0,109220.0,1.91659561]
[1748022286744,0.011,109230.0,109220.0,2.04009641]
[1748022289016,0.011,109230.0,109220.0,2.05093426]
[1748022290626,0.01,109230.0,109220.0,2.04993426]
[1748022290828,0.01,109230.0,109220.0,2.05193426]
[1748022290938,0.01,109230.0,109220.0,2.05493426]
[1748022291595,0.09422544,109250.0,109240.0,0.21054456]
[1748022291596,0.07592007,109250.0,109240.0,0.21054456]
[1748022291756,0.07592007,109250.0,109240.0,1.68963127]
[1748022292175,0.08507263,109250.0,109240.0,1.68963127]
[1748022292783,0.08622415,109250.0,109240.0,1.69832129]
[1748022293329,0.08622415,109250.0,109240.0,2.03832129]
[1748022294056,0.07907159,109250.0,109240.0,2.03832129]
[1748022294821,0.00515152,109250.0,109240.0,2.41706244]
[1748022296352,0.00515152,109250.0,109240.0,1.78430244]
[1748022296474,0.00515152,109250.0,109240.0,2.41706244]
[1748022296896,0.00515152,109250.0,109240.0,2.03832129]
[1748022297976,0.01430408,109250.0,109240.0,2.03832129]
[1748022298133,0.00515152,109250.0,109240.0,2.03832129]
[1748022300231,0.01430408,109250.0,109240.0,2.03824129]
[1748022300412,0.01430408,109250.0,109240.0,2.39998244]
[1748022301085,0.01430408,109250.0,109240.0,1.76730244]
[1748022301259,0.01430408,109250.0,109240.0,2.39998244]
[1748022301470,0.01430408,109250.0,109240.0,2.03824129]
[1748022301773,0.01430408,109250.0,109240.0,0.34869002]
[1748022301774,0.22351788,109250.0,109240.0,0.34869002]
[1748022302033,0.31574432,109250.0,109240.0,1.46379117]
[1748022302213,0.31574432,109250.0,109240.0,1.73811117]
[1748022302418,0.31574432,109250.0,109240.0,0.74369002]
[1748022302625,0.31574432,109250.0,109240.0,1.37637002]
[1748022302837,0.31574432,109250.0,109240.0,1.36768]
[1748022304224,0.40528988,109250.0,109240.0,0.395]
[1748022304445,0.40528988,109250.0,109240.0,0.66932]
[1748022305286,0.34591066,109250.0,109240.0,0.66932]
[1748022305495,0.24182425,109250.0,109240.0,1.55414426]
[1748022305700,0.24182425,109250.0,109240.0,1.37106115]
[1748022307606,0.24182425,109250.0,109240.0,1.57245231]
[1748022307890,0.05946293,109250.0,109240.0,1.68030525]
[1748022308510,0.06861608,109250.0,109240.0,1.68030525]
[1748022308750,0.07861608,109250.0,109240.0,1.68030525]
[1748022308924,0.26168244,109250.0,109240.0,1.68030525]
[1748022309141,0.26168303,109250.0,109240.0,1.68900141]
[1748022309370,0.06946394,109250.0,109240.0,1.68900141]
[1748022309762,0.2525303,109250.0,109240.0,1.68900158]
[1748022309965,0.06946394,109250.0,109240.0,1.69815514]
[1748022310835,0.01515152,109250.0,109240.0,1.69815514]
[1748022311030,0.02430416,109250.0,109240.0,2.05989629]
[1748022311186,0.01515152,109250.0,109240.0,2.05989629]
[1748022311391,0.02430408,109250.0,109240.0,2.05989629]
[1748022311672,0.01515152,109250.0,109240.0,2.05989629]
[1748022311837,0.02430416,109250.0,109240.0,2.05989629]
[1748022312047,0.02430408,109250.0,109240.0,2.05989629]
[1748022312627,0.01515152,109250.0,109240.0,2.05989629]
[1748022313029,0.01515152,109250.0,109240.0,2.09303414]
[1748022313455,0.06565349,109270.0,109260.0,0.21050602]
[1748022313668,0.002,109270.0,109260.0,1.65672147]
[1748022314307,0.01115088,109270.0,109260.0,1.65672147]
[1748022314509,0.002,109270.0,109260.0,1.65672147]
[1748022314717,0.002,109270.0,109260.0,1.66541763]
[1748022314926,0.002,109270.0,109260.0,1.66741763]
[1748022315085,0.002,109270.0,109260.0,1.66941763]
[1748022315284,0.002,109270.0,109260.0,2.00941763]
[1748022315492,0.002,109270.0,109260.0,2.02641763]
[1748022315712,0.002,109270.0,109260.0,2.03171763]
[1748022316395,0.002,109270.0,109260.0,2.02641763]
[1748022316600,0.02030219,109270.0,109260.0,1.37673763]
[1748022316806,0.06415366,109270.0,109260.0,2.00917763]
[1748022317477,0.06406791,109270.0,109260.0,2.00917763]
[1748022317710,0.05491644,109270.0,109260.0,2.00917763]
[1748022317877,0.00191425,109270.0,109260.0,2.00917763]
[1748022318766,0.23020159,109270.0,109260.0,1.90124804]
[1748022318972,0.23865029,109270.0,109260.0,1.89209565]
[1748022319184,0.23865029,109270.0,109260.0,1.07668605]
[1748022319399,0.23865029,109270.0,109260.0,0.04996966]
[1748022319574,0.32819585,109270.0,109260.0,0.04996966]
[1748022319809,0.32819585,109270.0,109260.0,0.68232966]
[1748022320422,0.32819585,109270.0,109260.0,0.68032966]
[1748022320605,0.32819585,109270.0,109260.0,0.68132966]
[1748022320738,0.32819585,109270.0,109260.0,0.6706335]
[1748022320951,0.32819585,109270.0,109260.0,0.6696335]
[1748022321160,0.32919585,109270.0,109260.0,0.6706335]
[1748022321370,0.32919585,109270.0,109260.0,0.0382735]
[1748022321606,0.32919585,109270.0,109260.0,0.6706735]
[1748022322216,0.32919585,109270.0,109260.0,0.3125535]
[1748022322428,0.32919585,109270.0,109260.0,0.3115535]
[1748022322757,0.33019585,109270.0,109260.0,0.3115535]
[1748022323424,0.33019585,109270.0,109260.0,0.67329465]
[1748022323646,0.24065029,109270.0,109260.0,0.67329465]
[1748022324691,0.24065029,109270.0,109260.0,1.3750358]
[1748022324919,0.24065029,109270.0,109260.0,1.01329465]
[1748022325121,0.06676782,109270.0,109260.0,1.58554182]
[1748022325328,0.25895222,109270.0,109260.0,1.58554182]
[1748022325452,0.24980134,109270.0,109260.0,1.58554199]
[1748022325654,0.06676808,109270.0,109260.0,1.59469388]
[1748022325906,0.04916808,109270.0,109260.0,1.59469388]
[1748022326095,0.01306513,109270.0,109260.0,1.59469388]
[1748022326296,0.01306513,109270.0,109260.0,1.10389955]
[1748022326551,0.00391425,109270.0,109260.0,1.03268594]
[1748022326864,0.03136799,109270.0,109260.0,1.03268594]
[1748022327062,0.03136799,109270.0,109260.0,0.94138564]
[1748022327299,0.0130653,109270.0,109260.0,0.94138564]
[1748022327508,0.00391425,109270.0,109260.0,0.97769148]
[1748022327722,0.00391425,109270.0,109260.0,1.25201148]
[1748022328373,0.00291425,109270.0,109260.0,1.59201148]
[1748022328585,0.00291425,109270.0,109260.0,1.59301148]
[1748022328818,0.00191425,109270.0,109260.0,1.59301148]
[1748022329255,0.00191425,109270.0,109260.0,1.59401148]
[1748022330677,0.00191425,109270.0,109260.0,1.60871148]
[1748022330916,0.07089818,109290.0,109280.0,0.9339498]
[1748022331116,0.0708981,109290.0,109280.0,1.5663098]
[1748022331536,0.26304741,109290.0,109280.0,1.5663098]
[1748022331743,0.25389812,109290.0,109280.0,1.56630997]
[1748022331949,0.24474874,109290.0,109280.0,1.18626797]
[1748022332154,0.24674874,109290.0,109280.0,1.1954186]
[1748022332365,0.24674874,109290.0,109280.0,1.21371962]
[1748022332537,0.24674874,109290.0,109280.0,1.16456915]
[1748022332746,0.24874874,109290.0,109280.0,1.16456915]
[1748022333314,0.24874874,109290.0,109280.0,1.17371953]
[1748022333588,0.05659901,109290.0,109280.0,1.18286974]
[1748022333833,0.0748986,109290.0,109280.0,1.18286974]
[1748022334057,0.26704791,109290.0,109280.0,1.54461089]
[1748022334283,0.25789853,109290.0,109280.0,1.53546077]
[1748022334502,0.24874899,109290.0,109280.0,1.53546077]
[1748022334734,0.24874899,109290.0,109280.0,1.54461115]
[1748022334956,0.24874899,109290.0,109280.0,1.18286958]
[1748022335421,0.24874899,109290.0,109280.0,1.17371928]
[1748022335904,0.24874899,109290.0,109280.0,1.53546043]
[1748022336890,0.06574964,109290.0,109280.0,1.53546043]
[1748022337147,0.04019934,109290.0,109280.0,1.54461064]
[1748022337387,0.01,109300.0,109290.0,0.21044824]
[1748022337617,0.02829691,109300.0,109290.0,1.4183561]
[1748022338067,0.02829699,109300.0,109290.0,1.4183561]
[1748022338284,0.01829448,109320.0,109290.0,1.73090721]
[1748022338499,0.25183794,109320.0,109310.0,0.92474433]
[1748022338711,0.05974143,109320.0,109310.0,0.92474433]
[1748022338927,0.0414467,109320.0,109310.0,0.93389203]
[1748022339138,0.04364051,109320.0,109310.0,0.93389203]
[1748022339352,0.0162,109320.0,109310.0,1.36343759]
[1748022339574,0.0617386,109330.0,109320.0,0.2103905]
[1748022339798,0.05309999,109330.0,109320.0,1.5661128]
[1748022340030,0.01710784,109330.0,109320.0,1.99565836]
[1748022340259,0.00050784,109330.0,109320.0,1.99565836]
[1748022341229,0.01914427,109350.0,109340.0,0.57209315]
[1748022341460,0.01013944,109350.0,109340.0,2.39049986]
[1748022341689,0.01928371,109350.0,109340.0,2.39049986]
[1748022342131,0.02842807,109350.0,109340.0,2.39049986]
[1748022342351,0.01928371,109350.0,109340.0,2.39049986]
[1748022342586,0.01928371,109350.0,109340.0,0.74355476]
[1748022342587,0.26391672,109350.0,109340.0,0.74355476]
[1748022342802,0.24562801,109350.0,109340.0,0.74347476]
[1748022343006,0.24562801,109350.0,109340.0,1.73733591]
[1748022343450,0.24562801,109350.0,109340.0,1.72866115]
[1748022344057,0.06272849,109350.0,109340.0,2.32790964]
[1748022344227,0.24662751,109350.0,109340.0,1.76504151]
[1748022344430,0.05458388,109350.0,109340.0,1.77418729]
[1748022344648,0.0637279,109350.0,109340.0,1.96624866]
[1748022344840,0.0637279,109350.0,109340.0,1.98453929]
[1748022345057,0.04543944,109350.0,109340.0,1.98453929]
[1748022345430,0.04543944,109350.0,109340.0,2.34628044]
[1748022345639,0.02923944,109350.0,109340.0,2.34628044]
[1748022346023,0.02923944,109350.0,109340.0,2.435826]
[1748022346246,0.01213944,109350.0,109340.0,2.435826]
[1748022346450,0.01213944,109350.0,109340.0,2.4444727]
[1748022347120,0.01113944,109350.0,109340.0,2.4444727]
[1748022347293,0.02853944,109350.0,109340.0,2.4444727]
[1748022347612,0.02853944,109350.0,109340.0,2.4454727]
[1748022347817,0.05438371,109350.0,109340.0,2.4454727]
[1748022348123,0.05338371,109350.0,109340.0,2.08373155]
[1748022348478,0.06252807,109350.0,109340.0,2.08473155]
[1748022348686,0.03668371,109350.0,109340.0,2.08473155]
[1748022348895,0.01013944,109350.0,109340.0,2.4464727]
[1748022352139,0.01013944,109350.0,109340.0,1.8142727]
[1748022352420,0.02763944,109350.0,109340.0,2.08457155]
[1748022352664,0.05308363,109350.0,109340.0,2.08457155]
[1748022352896,0.06222799,109350.0,109340.0,2.08457155]
[1748022353154,0.04393944,109350.0,109340.0,2.08457155]
[1748022353644,0.02763944,109350.0,109340.0,2.08457155]
[1748022353880,0.02763944,109350.0,109340.0,2.4463127]
[1748022355153,0.02763944,109350.0,109340.0,2.45715055]
[1748022356556,0.04592823,109350.0,109340.0,2.45715055]
[1748022356806,0.02763944,109350.0,109340.0,2.45715055]
[1748022358119,0.26532686,109390.0,109340.0,2.45715055]
[1748022358120,0.0176232,109390.0,109380.0,0.34914243]
[1748022358316,0.21954925,109390.0,109380.0,1.52573236]
[1748022358554,0.23654992,109390.0,109380.0,1.53487471]
[1748022358747,0.25304992,109390.0,109380.0,1.89661586]
[1748022358953,0.23476731,109390.0,109380.0,1.87833108]
[1748022359170,0.23476731,109390.0,109380.0,1.6954823]
[1748022359342,0.23476731,109390.0,109380.0,1.51658993]
[1748022359746,0.24176731,109390.0,109380.0,1.51658993]
[1748022360112,0.23776731,109390.0,109380.0,1.51658993]
[1748022360470,0.24076731,109390.0,109380.0,1.52523663]
[1748022360670,0.2286258,109390.0,109380.0,1.34238785]
[1748022361088,0.2306258,109390.0,109380.0,1.52523663]
[1748022361317,0.2306258,109390.0,109380.0,1.34238785]
[1748022361521,0.2306258,109390.0,109380.0,1.52523663]
[1748022361724,0.2306258,109390.0,109380.0,1.34238785]
[1748022363070,0.2306258,109390.0,109380.0,1.52523663]
[1748022363614,0.03865214,109390.0,109380.0,1.54352108]
[1748022363892,0.05693441,109390.0,109380.0,1.91440408]
[1748022364098,0.06607584,109390.0,109380.0,1.92520673]
[1748022364302,0.05393441,109390.0,109380.0,1.92520673]
[1748022364417,0.06307584,109390.0,109380.0,1.92520673]
[1748022364613,0.05193441,109390.0,109380.0,1.92520673]
[1748022364822,0.06107584,109390.0,109380.0,1.92520673]
[1748022365047,0.06207584,109390.0,109380.0,1.92520673]
[1748022365267,0.04379315,109390.0,109380.0,2.01475229]
[1748022365467,0.02729315,109390.0,109380.0,2.01475229]
[1748022366215,0.02829315,109390.0,109380.0,2.01475229]
[1748022366582,0.03743441,109390.0,109380.0,2.01831284]
[1748022366767,0.02829315,109390.0,109380.0,2.01831284]
[1748022366980,0.03743433,109390.0,109380.0,2.01831284]
[1748022367168,0.02043433,109390.0,109380.0,2.01831284]
[1748022367572,0.03773409,109390.0,109380.0,2.01831284]
[1748022367800,0.04687544,109390.0,109380.0,2.01831284]
[1748022368007,0.06457544,109390.0,109380.0,2.01831284]
[1748022368219,0.06457535,109390.0,109380.0,2.00394964]
[1748022368457,0.24740741,109390.0,109380.0,0.7065667]
[1748022368652,0.23826689,109390.0,109380.0,1.34230785]
[1748022368875,0.23826689,109390.0,109380.0,1.54344133]
[1748022369088,0.24740849,109390.0,109380.0,1.56172561]
[1748022369250,0.24740849,109390.0,109380.0,1.55258351]
[1748022369251,0.06457643,109390.0,109380.0,1.55258351]
[1748022369451,0.05543483,109390.0,109380.0,1.92346676]
[1748022369712,0.03715214,109390.0,109380.0,1.93260861]
[1748022370504,0.01523755,109390.0,109380.0,1.30068861]